Cogmind - Beta 14 *** ADVENTURER MODE // 2025.05.05 @ 10:21:30 Player: Tisa Result: Destroyed by XZ-QE5(R) with Subdweller Beam Cannon Performance ------------- Evolutions (0) 0 Regions Visited (2) 400 Robots Destroyed (19) 95 Value Destroyed (733) 733 Prototype IDs (1) 20 Alien Tech Used (0) 0 Bonus (0) 0 TOTAL SCORE: 1248 Bonus ------- None Cogmind --------- Core Integrity 0/250 Matter 275/300 Energy 10/100 System Corruption 0% Temperature Cool (9) Movement Rolling (110) Location -10/Subcaves Parts ------- > --- POWER (1+1) ------ (None) > --- PROPULSION (2) --- Subdweller Monowheel > --- UTILITY (2+1) ---- Small Storage Unit Rainbow Chip > --- WEAPON (2) ------- Riot Gun Makeshift Sword > --- INVENTORY (8) ---- Battle Rifle Subdweller Machine Gun Peak State ------------ > --- POWER ------------ (None) > --- PROPULSION ------- Subdweller Monowheel Subdweller Monowheel > --- UTILITY ---------- Small Storage Unit Rainbow Chip > --- WEAPON ----------- Riot Gun Heavy Riot Gun Subdweller Machine Gun > --- INVENTORY -------- Battle Rifle Makeshift Sword [Rating: 27] Favorites ----------- Power Ion Engine Engine Ion Engine Propulsion Aluminum Leg Leg Aluminum Leg Wheel Subdweller Monowheel Utility Small Storage Unit Storage Small Storage Unit Processor Rainbow Chip Weapon Battle Cannon Energy Gun EM Pulse Gun Ballistic Gun Assault Rifle Ballistic Cannon Battle Cannon Slashing Weapon Makeshift Sword Build | -11 -10 -10 ------- Run | Yrd Mat Sub Slots Evolved . | . . . Power . | . . . Propulsion . | . . . Utility . | . . . Weapon . | . . . Parts Attached 20 | 7 . 13 Power 1 | 1 . . Engine 1 | 1 . . Core . | . . . Reactor . | . . . Propulsion 8 | 2 . 6 Treads . | . . . Leg 5 | 2 . 3 Wheel 3 | . . 3 Hover . | . . . Flight . | . . . Utility 2 | 1 . 1 Device . | . . . Storage 1 | 1 . . Processor 1 | . . 1 Hackware . | . . . Protection . | . . . Artifact . | . . . Weapon 9 | 3 . 6 Energy Gun 4 | 2 . 2 Energy Cannon . | . . . Ballistic Gun 2 | 1 . 1 Ballistic Cannon 1 | . . 1 Launcher . | . . . Special Weapon . | . . . Impact Weapon . | . . . Slashing Weapon 2 | . . 2 Piercing Weapon . | . . . Special Melee Weapon . | . . . Unidentified Prototypes 1 | . . 1 Parts Lost 6 | . . 6 Power 1 | . . 1 Propulsion 3 | . . 3 Utility . | . . . Weapon 2 | . . 2 Highest Loss Streak 3 | . . 3 To Critical Strikes . | . . . Average Slot Usage (%) 74 | . 85 70 Engine 7 | . 14 5 Leg 23 | . 28 21 Wheel 3 | . . 4 Storage 11 | . 14 11 Processor 4 | . . 5 Energy Gun 7 | . 28 . Ballistic Cannon 7 | . . 10 Slashing Weapon 7 | . . 10 Peak Build Rating 27 | 6 6 27 Average Rating 14 | 3 6 18 On Entrance 4 | . 6 6 Naked Turns . | . . . Heaviest Build 16 | 14 14 16 Greatest Support 40 | 20 20 40 Greatest Overweight (x) 3 | 1 . 3 Average Overweight (x) . | . . . Largest Inventory Capacity 8 | 8 8 8 Average Capacity 7 | 6 8 8 Most Carried 8 | 5 4 8 Average Carried 4 | 2 3 5 Final Capacity 8 | 8 8 8 Final Carried 4 | 2 4 2 Class Distribution -------------------- 100% | Mutant Dominant Class ---------------- Mutant | -10/Materials Mutant | -10/Subcaves Resources | -11 -10 -10 ----------- Run | Yrd Mat Sub Matter Collected 520 | 151 119 250 Remotely . | . . . Salvage Created 757 | . 260 497 Parts 45 | . 15 30 Haulers Intercepted . | . . . Recyclers Shooed . | . . . Parts Field Recycled . | . . . Retrieved Matter . | . . . Parts Self-Destructed 2 | . . 2 Prevented . | . . . Kills | -11 -10 -10 ------- Run | Yrd Mat Sub Combat Hostiles Destroyed 17 | . 4 13 Melee 7 | . . 7 Guns 3 | . 3 . Cannons 6 | . . 6 Classes Destroyed 5 | . 2 3 Watcher 2 | . 2 . Grunt 5 | . 4 1 Sentry 1 | . . 1 Artisan 1 | . . 1 Subdweller 11 | . . 11 Best Kill Streak 3 | . 3 3 Combat Bots Only 3 | . 2 3 Max Kills in Single Turn 1 | . 1 1 Gunslinging . | . . . Exploded . | . . . Melee 1 | . . 1 Uniques/NPCs Destroyed . | . . . Combat | -11 -10 -10 -------- Run | Yrd Mat Sub Hostile Shots Fired 87 | . 25 62 Missed 34 | . 8 26 Damage Taken 1049 | . 212 837 Core 253 | . 18 235 Absorbed by Shields . | . . . Ignored by Resistances 254 | . 64 190 Core Remaining (%) 100 | 100 . . Volleys Fired 52 | . 17 35 Largest 2 | . 2 1 Hottest 80 | . 80 50 Shots Fired 69 | . 34 35 Gun 35 | . 34 1 Cannon 34 | . . 34 Launcher . | . . . Special . | . . . Kinetic 34 | . . 34 Thermal . | . . . Explosive . | . . . Electromagnetic 35 | . 34 1 Robot Hit Streak 21 | . 15 21 Robot Miss Streak 3 | . 3 . Penetration Max . | . . . Secondary Targets 1 | . 1 . Max Gunslinging Chain 1 | . 1 . Shots Hit Robots 66 | . 26 40 Core Hits 25 | . 10 15 Critical Kills . | . . . Critical Parts Destroyed . | . . . Critical Strikes 1 | . . 1 Blast 1 | . . 1 Melee Attacks 32 | . . 32 Impact . | . . . Slashing 32 | . . 32 Piercing . | . . . Sneak Attacks 1 | . . 1 Combat Hostiles . | . . . Follow-up Attacks . | . . . Damage Inflicted 1687 | . 398 1289 Guns 384 | . 367 17 Cannons 385 | . . 385 Explosions 155 | . 31 124 Melee 763 | . . 763 Ramming . | . . . Kinetic 385 | . . 385 Thermal 155 | . 31 124 Explosive . | . . . Electromagnetic 384 | . 367 17 Impact . | . . . Slashing 763 | . . 763 Piercing . | . . . Highest Corruption . | . . . Average Corruption . | . . . Corruption Purged . | . . . Corruption Blocked . | . . . Overload Shots . | . . . Overflow Damage 74 | . . 74 Projectiles . | . . . Explosions 36 | . . 36 Melee 38 | . . 38 Knockbacks 3 | . . 3 Impact . | . . . Kinetic 3 | . . 3 Secondary . | . . . Self-Inflicted Damage 81 | . 32 49 Shots 2 | . 1 1 Rammed . | . . . Targets Rammed . | . . . Kicked . | . . . Crushed . | . . . Highest Temperature 225 | . 225 176 Average Temperature 104 | . 106 76 Received Heat Transfer 483 | . 150 333 Siege Activations . | . . . Robots Corrupted 2 | . 2 . Combat Hostiles 1 | . 1 . Parts Fried 3 | . 3 . Impact Corruptions . | . . . Robots Melted . | . . . Combat Hostiles . | . . . Parts Melted . | . . . Heat Transferred 150 | . 50 100 Parts Sabotaged . | . . . Parts Stolen . | . . . Parts Stripped . | . . . Power Chain Reactions 2 | . 1 1 Alert | -11 -10 -10 ------- Run | Yrd Mat Sub Peak Influence 176 | . 176 . Initial . | . . . Average 90 | . 106 . Maximum Alert Level . | . . . Low Security (%) 100 | 100 100 . Level 1 . | . . . Level 2 . | . . . Level 3 . | . . . Level 4 . | . . . Level 5 . | . . . High Security . | . . . Max Security . | . . . Squads Dispatched . | . . . Investigation . | . . . Extermination . | . . . Reinforcement . | . . . Assault . | . . . Garrison . | . . . Intercept . | . . . Searches Triggered . | . . . Construction Impeded . | . . . Haulers Reinforced . | . . . Active Scanning Responses . | . . . Cargo Convoy Interrupts . | . . . Stealth | -11 -10 -10 --------- Run | Yrd Mat Sub Distress Signals 1 | . 1 . Communications Jammed . | . . . Distress Signals . | . . . Times Spotted 20 | . 6 14 Peak Tracking Total 3 | . 3 3 Tactical Retreats . | . . . Traps | -11 -10 -10 ------- Run | Yrd Mat Sub Traps Triggered 3 | . . 3 Indirectly . | . . . Trap Hack Attempts . | . . . Triggered . | . . . Disarmed . | . . . Reprogrammed . | . . . Reused . | . . . Traps Extracted . | . . . Installed . | . . . Triggered 1 | . 1 . Machines | -11 -10 -10 ---------- Run | Yrd Mat Sub Machines Disabled 2 | . 2 . Max in Single Turn 2 | . 2 . Machines Repaired . | . . . Machines Dismantled . | . . . Machines Sabotaged . | . . . Overloaded Fab Kills . | . . . Hacking | -11 -10 -10 --------- Run | Yrd Mat Sub Machines Accessed . | . . . Terminals . | . . . Fabricators . | . . . Repair Stations . | . . . Recycling Units . | . . . Scanalyzers . | . . . Garrison Access . | . . . Total Hacks . | . . . Successful . | . . . Failed . | . . . Catastrophic . | . . . Database Lockouts . | . . . Manual . | . . . Terminals . | . . . Fabricators . | . . . Repair Stations . | . . . Recycling Units . | . . . Scanalyzers . | . . . Garrison Access . | . . . Terminal Hacks . | . . . Fabricator Hacks . | . . . Repair Station Hacks . | . . . Recycling Unit Hacks . | . . . Scanalyzer . | . . . Garrison Access Hacks . | . . . Unauthorized Hacks . | . . . Terminals . | . . . Fabricators . | . . . Repair Stations . | . . . Recycling Units . | . . . Scanalyzers . | . . . Garrison Access . | . . . Data Cores Recovered . | . . . Used . | . . . Hacking Detections . | . . . Full Trace Events . | . . . Feedback Events . | . . . Feedback Blocked . | . . . Robot Schematics Acquired . | . . . Robots Built . | . . . Authchips . | . . . Time . | . . . Total Robot Build Rating . | . . . Part Schematics Acquired . | . . . Parts Built . | . . . Authchips . | . . . Time . | . . . Total Part Build Rating . | . . . Parts Repaired . | . . . Time . | . . . Parts Recycled . | . . . Recycled Matter . | . . . Retrieved Matter . | . . . Retrieved Components . | . . . Parts Scanalyzed . | . . . Part Schematics Acquired . | . . . Parts Damaged . | . . . Bothacking | -11 -10 -10 ------------ Run | Yrd Mat Sub Used RIF Installer . | . . . Robots Hacked . | . . . Non-combat . | . . . Combat . | . . . Robot Hacks Applied . | . . . Relay Couplers Released . | . . . Fabnet Peak Effective % . | . . . Robots Rewired . | . . . Allies Hacked . | . . . Hacks Repelled . | . . . Allies | -11 -10 -10 -------- Run | Yrd Mat Sub Total Allies . | . . . Largest Group . | . . . Highest-Rated Group . | . . . Highest-Rated Ally . | . . . Total Orders . | . . . Ally Attacks . | . . . Total Damage . | . . . Kills . | . . . Allies Corrupted . | . . . Allies Melted . | . . . Intel | -11 -10 -10 ------- Run | Yrd Mat Sub Robot Analysis Total . | . . . Derelict Logs Recovered 1 | . . 1 Drone Launches . | . . . Drone Recoveries . | . . . Exploration | -11 -10 -10 ------------- Run | Yrd Mat Sub Turns Passed 2144 | 92 537 1515 Spaces Moved 1434 | 69 233 1132 Core 18 | 14 . 4 Treads . | . . . Legs 1136 | 55 233 848 Wheels 280 | . . 280 Hover . | . . . Flight . | . . . Fastest Speed 50 | 50 120 110 Average Speed 117 | 107 120 117 Slowest Speed 200 | 120 120 200 Overloaded Moves . | . . . Propulsion Burnouts . | . . . Robots Hopped . | . . . Cave-ins Triggered . | . . . Exploration Rate (%) 35 | 6 33 67 Regions Visited 2 Branch Regions 1 Pre-discovered Areas 1 | . . 1 Known Exits Taken . | . . . Unknown Exits Taken 2 | 1 1 . Scrap Searched 2 | . . 2 Spaces Dug . | . . . Terrain Destroyed 7 | . 3 4 Melee . | . . . Projectile . | . . . AOE 7 | . 3 4 Terrain Rammed . | . . . Walls Destroyed . | . . . Machines Disabled . | . . . Actions | -11 -10 -10 --------- Run | Yrd Mat Sub Total 1791 | 87 457 1247 Wait 211 | . 202 9 Move 1432 | 68 232 1132 Hop . | . . . Pick Up 26 | 10 4 12 Fast Attach . | . . . Attach 18 | 6 . 12 Detach 5 | . . 5 Swap 2 | 1 . 1 Drop 13 | 2 2 9 Fire 52 | . 17 35 Melee 32 | . . 32 Ram . | . . . Kick . | . . . Crush . | . . . Escape Stasis . | . . . Rewire . | . . . Trap . | . . . Miscellaneous . | . . . Route ------- -11/Scrapyard -10/Materials (discovered 2 exits: [*Mat] / [*Sub]) -10/Subcaves History --------- Turn | Location | Event 6 | -11/Scrapyard | Discovered new exit (range 15) 93 | -11/Scrapyard | Entered Materials 309 | -10/Materials | Build established: Mutant 321 | -10/Materials | Discovered new exit (range 15) 598 | -10/Materials | Discovered new exit (range 9) 630 | -10/Materials | Entered Subcaves 641 | -10/Subcaves | Shifting Twisted Machinery released Battle Cannon 647 | -10/Subcaves | Shifting Twisted Machinery released Mak. Sword 842 | -10/Subcaves | A swath of the cavern ceiling suddenly collapsed 998 | -10/Subcaves | Shifting Twisted Machinery released Sub. Machine Gun 1003 | -10/Subcaves | Shifting Twisted Machinery released Sub. Monowheel 1150 | -10/Subcaves | A Subdweller sparked back to life 1150 | -10/Subcaves | A Subdweller sparked back to life 1150 | -10/Subcaves | A Subdweller sparked back to life 1195 | -10/Subcaves | Found Prototype Processor 1196 | -10/Subcaves | Identified Rainbow Chip 1197 | -10/Subcaves | Attached Rainbow Chip, gained temporary slots: Power, Propulsion, Utility, Weapon 1289 | -10/Subcaves | Learned location of Storage (-7) 1694 | -10/Subcaves | A swath of the cavern ceiling suddenly collapsed 1870 | -10/Subcaves | Core integrity fell below 50% 1895 | -10/Subcaves | Shifting Twisted Machinery released Sub. Laser 1898 | -10/Subcaves | Shifting Twisted Machinery released Sub. Monowheel 1994 | -10/Subcaves | Ambushed by angry Subdweller bent on revenge 2047 | -10/Subcaves | Core integrity fell below 20% 2136 | -10/Subcaves | Ambushed by Subdwellers from Twisted Machinery 2145 | -10/Subcaves | Destroyed by XZ-QE5(R) with Subdweller Beam Cannon Last Messages --------------- Destroyed Lgt. Ion Engine. 81-IY2(u) cries out in pain. 81-IY2(u) destroyed. Y6-EVD(R) angrily emerges from the Twisted Machinery. Y6-EVD(R): "SUBMAD!" Acquired 20 matter. Y6-EVD(R) destroyed. 4C-YUQ(R) destroyed. EC-1XA(R) affixes Scrap Shield Fragment to Scrap Shield. EC-1XA(R) destroyed. XZ-QE5(R) emerges from the Twisted Machinery. Battle Cannon destroyed. Chain reaction triggered in Sub. Power Source. Sub. Monowheel destroyed. Destroyed Sub. Monowheel. Hvy. Riot Gun destroyed. Temporary Weapon slot lost. MU-OFI(R) destroyed. Map ----- +----------------------------------------------------+ | ???????????????????????????????????????????????? | | ???????????????????????????????????????????????? | | ???????????????????????????????????????????????? | | ???????????????????????????????????????????????? | | ???????????????????????????????????????????????? | | ???????????????????????????????????????????????? | | ???????????????????????????????????????????????? | | ???????????????????????????????????????????????? | | ????????????????????????????????????????? ?????? | | ??????????????????????????????????????? ?????? | | ????????????????????????????????????? ?????? | | ?????????????????????????????????????# ###### | | ????????????????????????????????????? | | ????????????????????##???????????????? | | ????????????????????? ???????????????? ? | | ????????????????????? ##??????????????# ## | | ?????????????????""?? " ?????????????# ? | | ?????????????????"""? "" ????????????# #? | | ????????????????? ??" #?????####??# #? | | ???????????????# ???## ###### ##### ## | | ????????????????" """???# ## | | ???????????????#""""" ???# ### | | ????????????????? "" ##### # ### ## | | ???????????????????# ;###### ##?## ## | | ???????????????????# R![ # # #???# ### | | ???????????????????# &%@ #???# #?# | | ???????????????????# ! #;## #???# # | | ???????????????????#; ;;####??###???#### ### | | ???????????????????###### ??????????????#####?## | | ?????????????????????????##????????????????????? | | ???????????????????????????????????????????????? | | ???????????????????????????????????????????????? | | ???????????????????????????????????????????????? | | ???????????????????????????????????????????????? | | ???????????????????????????????????????????????? | | ???????????????????????????????????????????????? | | ???????????????????????????????????????????????? | | ???????????????????????????????????????????????? | | ???????????????????????????????????????????????? | | ???????????????????????????????????????????????? | | ???????????????????????????????????????????????? | | ???????????????????????????????????????????????? | | ???????????????????????????????????????????????? | | | | | | | | | | | | | | | +----------------------------------------------------+ Best States ------------- Heat Dissipation 25 Energy Generation 10 Energy Capacity 250 Matter Stores 300 Matter Capacity 300 Sight Range 16 Terrain Scan Density 10 Resistance: KI 20 Resistance: TH 20 Resistance: EX 20 Resistance: EM 20 Resistance: I 20 Resistance: S 20 Resistance: P 20 Evasion (%) 55 Offensive Hacking 10 Item Schematics ----------------- None Robot Schematics ------------------ None Fabricated ------------ Nothing Alien Tech Used ----------------- None Achievements -------------- None Challenges ------------ None Game ------ Seed ThermoelectricHugeCharger Manual? 0 Play Time 00:12:51 Cumulative 4.4 hours Start 2025.05.05 @ 10:09:13 End 2025.05.05 @ 10:21:30 Sessions 1 Manual Loads 0 Difficulty Adventurer Special Mode None Game No. 6 Rogue 0 Adventurer 6 Explorer 0 Win Type - Total 0 Types 0/0/0/0/0/0/0/0/0 Lore% 4 Gallery% 6 Achievement% 9 Wizard Run 0 Options --------- Layout 1 ASCII 0 Keyboard 0 Movement Mouse Keybinds 0 Fullscreen 1 Font 24/Smallcaps Map View 50x35 Zoom Use 0% Tactical HUD 0 Map Filters NONE Filters NONE Steam 1 RUN: dff68695-5e74-4a80-b0e4-a7e84026ff18